Cogmind - Beta 16 @@@ ROGUE MODE // 2025.12.31 @ 22:52:41 Player: LYMPH NODE JONES Result: Destroyed by G-34 Mercenary with Small Laser Performance ------------- Evolutions (1) 500 Regions Visited (3) 600 Robots Destroyed (30) 150 Value Destroyed (568) 568 Prototype IDs (0) 0 Alien Tech Used (0) 0 Bonus (58) 58 TOTAL SCORE: 1876 Bonus ------- Follower Combat Kills 58 Cogmind --------- Core Integrity 0/400 Matter 300/300 Energy 103/250 System Corruption 0% Temperature Cool (49) Movement Core (200) Ox3 Location -9/Materials Parts ------- > --- POWER (1) -------- Ion Engine > --- PROPULSION (2) --- (None) > --- UTILITY (4) ------ Seismic Detector Power Shielding > --- WEAPON (2) ------- Beam Rifle > --- INVENTORY (5) ---- (None) Peak State ------------ > --- POWER ------------ Ion Engine > --- PROPULSION ------- Aluminum Leg Aluminum Leg > --- UTILITY ---------- Improved Heat Sink High-capacity Battery Improved Sensor Array Power Shielding > --- WEAPON ----------- EM Pulse Gun Beam Rifle > --- INVENTORY -------- Seismic Detector Heavy EM Pulse Gun Beam Cannon Datajack [Rating: 14] Favorites ----------- Power Light Ion Engine Engine Light Ion Engine Propulsion Aluminum Leg Treads Light Treads Leg Aluminum Leg Utility High-capacity Battery Device Field Recycling Unit Storage High-capacity Battery Processor Targeting Computer Protection Power Shielding Weapon Heavy EM Pulse Gun Energy Gun Heavy EM Pulse Gun Energy Cannon Beam Cannon Ballistic Gun Assault Rifle Special Melee Weapon Datajack Build | -11 -10 -10 -9 ------- Run | Yrd Mat Min Mat Slots Evolved 2 | . . . 2 Power . | . . . . Propulsion . | . . . . Utility 2 | . . . 2 Weapon . | . . . . Parts Attached 39 | 7 13 10 9 Power 5 | 1 2 1 1 Engine 5 | 1 2 1 1 Core . | . . . . Reactor . | . . . . Propulsion 8 | 2 1 4 1 Treads 2 | . . 2 . Leg 6 | 2 1 2 1 Wheel . | . . . . Hover . | . . . . Flight . | . . . . Utility 13 | 1 6 3 3 Device 7 | . 2 2 3 Storage 2 | 1 1 . . Processor 1 | . 1 . . Hackware . | . . . . Protection 3 | . 2 1 . Artifact . | . . . . Weapon 13 | 3 4 2 4 Energy Gun 9 | 1 4 2 2 Energy Cannon 1 | . . . 1 Ballistic Gun 2 | 2 . . . Ballistic Cannon . | . . . . Launcher . | . . . . Special Weapon . | . . . . Impact Weapon . | . . . . Slashing Weapon . | . . . . Piercing Weapon . | . . . . Special Melee Weapon 1 | . . . 1 Unidentified Prototypes . | . . . . Parts Lost 12 | . . 2 10 Power 1 | . . . 1 Propulsion 3 | . . 1 2 Utility 3 | . . . 3 Weapon 5 | . . 1 4 Highest Loss Streak 10 | . . 1 10 To Critical Strikes . | . . . . Average Backups 4 | 2 4 4 2 Power . | . 1 . . Propulsion . | 1 . . . Utility . | . . 1 . Weapon 1 | . 1 1 1 Tool/Special . | . . . . Unused Backups 3 | . 3 . . Power . | . . . . Propulsion 3 | . 3 . . Utility . | . . . . Weapon . | . . . . Tool/Special . | . . . . Average Slot Usage (%) 97 | . 98 99 81 Engine 13 | . 14 14 8 Treads 1 | . . 5 . Leg 25 | . 27 22 15 Device 9 | . 8 10 17 Storage 11 | . 10 14 8 Protection 6 | . 7 3 11 Energy Gun 21 | . 19 27 17 Ballistic Gun 4 | . 8 . . Peak Build Rating 14 | 6 10 10 14 Average Rating 8 | 5 8 8 10 On Entrance 6 | . 6 10 9 Avg Prop Armor Cover (%) . | . . . . Naked Turns . | . . . . Heaviest Build 23 | 12 23 19 18 Greatest Support 40 | 20 20 40 20 Greatest Overweight (x) 3 | . 1 3 3 Average Overweight (x) . | . . . . Largest Inventory Capacity 8 | 8 8 5 5 Average Capacity 5 | 7 5 5 5 Most Carried 5 | 4 5 5 4 Average Carried 4 | 2 4 4 2 Final Capacity 8 | 8 5 5 5 Final Carried 5 | 4 5 5 . Class Distribution -------------------- 91% | Mutant 8% | Scavenger-Mutant Dominant Class ---------------- Mutant | -10/Materials Mutant | -10/Mines Scavenger-Mutant | -9/Materials Resources | -11 -10 -10 -9 ----------- Run | Yrd Mat Min Mat Matter Collected 748 | 235 245 188 80 Remotely . | . . . . Salvage Created 1058 | . 700 103 255 Parts 63 | . 46 4 13 Haulers Intercepted . | . . . . Recyclers Shooed . | . . . . Parts Field Recycled 3 | . . 3 . Retrieved Matter 11 | . . 11 . Parts Self-Destructed . | . . . . Prevented . | . . . . Parts Restored . | . . . . Kills | -11 -10 -10 -9 ------- Run | Yrd Mat Min Mat Combat Hostiles Destroyed 15 | . 9 2 4 Guns 11 | . 6 2 3 Cannons 1 | . . . 1 AOE 3 | . 3 . . Classes Destroyed 8 | . 6 . 2 Worker 6 | . 5 . 1 Builder 2 | . 2 . . Recycler 3 | . 3 . . Watcher 4 | . 3 . 1 Swarmer 5 | . 5 . . Grunt 8 | . 4 2 2 Duelist 1 | . . . 1 Sentry 1 | . . . 1 Best Kill Streak 8 | . 8 1 3 Combat Bots Only 3 | . 3 1 2 Max Kills in Single Turn 2 | . 2 1 1 Gunslinging . | . . . . Exploded 2 | . 2 . . Melee . | . . . . Uniques/NPCs Destroyed . | . . . . Combat | -11 -10 -10 -9 -------- Run | Yrd Mat Min Mat Hostile Shots Fired 120 | . 23 17 80 Missed 22 | . 6 . 16 Hits 98 | . 17 17 64 Melee 16 | . . . 16 Projectile 82 | . 17 17 48 Critical Strikes 6 | . . . 6 Damage Taken 1502 | . 172 252 1078 Core 458 | . 25 29 404 Absorbed by Shields . | . . . . Redirected to Shielding 32 | . . . 32 Core Remaining (%) 89 | 100 . 78 . Volleys Fired 70 | . 31 12 27 Largest 2 | . 2 2 2 Hottest 116 | . 90 90 116 Shots Fired 125 | . 62 23 40 Gun 120 | . 62 23 35 Cannon 5 | . . . 5 Launcher . | . . . . Special . | . . . . Kinetic 12 | . 12 . . Thermal 29 | . . 3 26 Explosive . | . . . . Electromagnetic 84 | . 50 20 14 Robot Hit Streak 10 | . 10 3 10 Robot Miss Streak 4 | . 4 2 2 Penetration Max . | . . . . Secondary Targets 1 | . . 1 . Max Gunslinging Chain 1 | . . 1 . Shots Hit Robots 71 | . 32 11 28 Core Hits 40 | . 24 4 12 Critical Kills . | . . . . Critical Parts Destroyed . | . . . . Critical Strikes 2 | . . 1 1 Burn 1 | . . . 1 Corrupt 1 | . . 1 . Melee Attacks 1 | . . . 1 Impact . | . . . . Slashing . | . . . . Piercing . | . . . . Sneak Attacks . | . . . . Combat Hostiles . | . . . . Follow-up Attacks . | . . . . Damage Inflicted 1393 | . 796 156 441 Guns 1100 | . 557 156 387 Cannons 54 | . . . 54 Explosions 239 | . 239 . . Melee . | . . . . Ramming . | . . . . Kinetic 84 | . 84 . . Thermal 574 | . 239 23 312 Explosive . | . . . . Electromagnetic 735 | . 473 133 129 Impact . | . . . . Slashing . | . . . . Piercing . | . . . . Highest Corruption 3 | . 3 3 . Average Corruption 2 | . 1 3 . Corruption Purged . | . . . . Corruption Blocked . | . . . . Effects 24 | . 11 13 . Message Errors 7 | . 4 3 . Matter Fused 5 | . 2 3 . Heat Flow Errors 3 | . 1 2 . Energy Discharges 1 | . . 1 . Parts Fused 1 | . . 1 . Data Loss (minor) 4 | . 3 1 . Misfires 1 | . . 1 . Alerts 2 | . 1 1 . Overload Shots . | . . . . Overflow Damage . | . . . . Projectiles . | . . . . Explosions . | . . . . Melee . | . . . . Knockbacks . | . . . . Impact . | . . . . Kinetic . | . . . . Secondary . | . . . . Self-Inflicted Damage . | . . . . Shots . | . . . . Rammed . | . . . . Targets Rammed . | . . . . Kicked . | . . . . Crushed . | . . . . Highest Temperature 467 | . 444 467 215 Average Temperature 133 | . 117 205 81 Received Heat Transfer 453 | . 24 126 303 Effects 13 | . 1 12 . Energy Bleed 1 | . 1 . . Matter Decay 1 | . . 1 . Damage (major) 11 | . . 11 . Siege Activations . | . . . . Martial Activations . | . . . . Shielding Activations . | . . . . Robots Disrupted . | . . . . Combat Hostiles . | . . . . Robots Corrupted . | . . . . Combat Hostiles . | . . . . Parts Fried 2 | . 2 . . Impact Corruptions . | . . . . Robots Melted . | . . . . Combat Hostiles . | . . . . Parts Melted 2 | . . . 2 Heat Transferred 1151 | . 250 50 851 Parts Sabotaged . | . . . . Parts Stolen . | . . . . Parts Stripped . | . . . . Power Chain Reactions 2 | . 2 . . Alert | -11 -10 -10 -9 ------- Run | Yrd Mat Min Mat Maximum Alert Level . | . . . . Low Security (%) 100 | 100 100 100 100 Level 1 . | . . . . Level 2 . | . . . . Level 3 . | . . . . Level 4 . | . . . . Level 5 . | . . . . High Security . | . . . . Max Security . | . . . . Peak Influence 147 | . 147 70 98 Initial 40 | . . 40 . Average 29 | . 42 8 26 Influence Increases 586 | . 332 50 204 Destroy 0b10 Robot/C 340 | . 180 40 120 Destroy 0b10 Robot/NC 75 | . 65 . 10 Destroy Leader 88 | . 46 10 32 Allied During Kill 11 | . . . 11 Successful Hack 2 | . 2 . . Disable Machine 45 | . 30 . 15 Destroy Structure 10 | . 9 . 1 Lose Combat Pursuer 15 | . . . 15 Influence Decreases 551 | . 227 155 169 Entered New Map 65 | . . 65 . Time Decay 357 | . 227 80 50 Lost Part 89 | . . 10 79 Lost Ally 40 | . . . 40 Squads Dispatched 3 | . 2 . 1 Investigation . | . . . . Extermination . | . . . . Reinforcement 2 | . 2 . . Assault 1 | . . . 1 Garrison . | . . . . Intercept . | . . . . Searches Triggered . | . . . . Construction Impeded . | . . . . Haulers Reinforced . | . . . . Active Scanning Responses . | . . . . Cargo Convoy Interrupts . | . . . . Stealth | -11 -10 -10 -9 --------- Run | Yrd Mat Min Mat Distress Signals 5 | . 2 . 3 Communications Jammed . | . . . . Distress Signals . | . . . . Times Spotted 40 | . 24 4 12 Peak Tracking Total 6 | . 3 2 6 Tactical Retreats 1 | . . . 1 Traps | -11 -10 -10 -9 ------- Run | Yrd Mat Min Mat Traps Triggered 5 | . 5 . . Indirectly . | . . . . Trap Hack Attempts . | . . . . Triggered . | . . . . Disarmed . | . . . . Reprogrammed . | . . . . Reused . | . . . . Traps Extracted . | . . . . Installed . | . . . . Triggered . | . . . . Machines | -11 -10 -10 -9 ---------- Run | Yrd Mat Min Mat Machines Disabled 3 | . 2 . 1 Max in Single Turn 1 | . 1 . 1 Machines Repaired . | . . . . Machines Dismantled . | . . . . Machines Sabotaged . | . . . . Overloaded Fab Kills . | . . . . Hacking | -11 -10 -10 -9 --------- Run | Yrd Mat Min Mat Machines Accessed 3 | . 3 . . Terminals 3 | . 3 . . Fabricators . | . . . . Repair Stations . | . . . . Recycling Units . | . . . . Scanalyzers . | . . . . Garrison Access . | . . . . Total Hacks 5 | . 5 . . Successful 3 | . 3 . . Failed 2 | . 2 . . Catastrophic . | . . . . Database Lockouts . | . . . . Manual . | . . . . Terminals 5 | . 5 . . Fabricators . | . . . . Repair Stations . | . . . . Recycling Units . | . . . . Scanalyzers . | . . . . Garrison Access . | . . . . Terminal Hacks 3 | . 3 . . Record 1 | . 1 . . Hauler Manifests 1 | . 1 . . Zone Layout 1 | . 1 . . Fabricator Hacks . | . . . . Repair Station Hacks . | . . . . Recycling Unit Hacks . | . . . . Scanalyzer . | . . . . Garrison Access Hacks . | . . . . Unauthorized Hacks . | . . . . Terminals . | . . . . Fabricators . | . . . . Repair Stations . | . . . . Recycling Units . | . . . . Scanalyzers . | . . . . Garrison Access . | . . . . Data Cores Recovered . | . . . . Used . | . . . . Hacking Detections 2 | . 2 . . Full Trace Events . | . . . . Feedback Events . | . . . . Feedback Blocked . | . . . . Robot Schematics Acquired . | . . . . Robots Built . | . . . . Authchips . | . . . . Time . | . . . . Total Robot Build Rating . | . . . . Part Schematics Acquired . | . . . . Parts Built . | . . . . Authchips . | . . . . Time . | . . . . Total Part Build Rating . | . . . . Part Studies Acquired . | . . . . Parts Repaired . | . . . . Time . | . . . . Parts Recycled . | . . . . Recycled Matter . | . . . . Retrieved Matter . | . . . . Retrieved Components . | . . . . Parts Scanalyzed . | . . . . Part Schematics Acquired . | . . . . Parts Damaged . | . . . . Bothacking | -11 -10 -10 -9 ------------ Run | Yrd Mat Min Mat Used RIF Installer . | . . . . Robots Hacked 1 | . . . 1 Non-combat . | . . . . Combat 1 | . . . 1 Robot Hacks Applied 1 | . . . 1 parse_system 1 | . . . 1 Relay Couplers Released . | . . . . Fabnet Peak Effective % . | . . . . Robots Rewired . | . . . . Allies Hacked . | . . . . Hacks Repelled . | . . . . Allies | -11 -10 -10 -9 -------- Run | Yrd Mat Min Mat Total Allies 2 | . . 2 . Largest Group 2 | . . 2 2 Highest-Rated Group 45 | . . 45 45 Highest-Rated Ally 31 | . . 31 31 Total Orders . | . . . . Ally Attacks 11 | . . . 11 Total Damage 171 | . . . 171 Kills 2 | . . . 2 Allies Corrupted . | . . . . Allies Melted . | . . . . Intel | -11 -10 -10 -9 ------- Run | Yrd Mat Min Mat Active Infowar (turns) 313 | . 125 . 188 Sensors 86 | . . . 86 Seismic 67 | . . . 67 ECM 178 | . 125 . 53 Robot Analysis Total . | . . . . Derelict Logs Recovered 1 | . . 1 . Drone Launches . | . . . . Drone Recoveries . | . . . . Exploration | -11 -10 -10 -9 ------------- Run | Yrd Mat Min Mat Turns Passed 2526 | 113 1457 766 190 Spaces Moved 1579 | 77 859 557 86 Core 21 | 6 . 1 14 Treads 87 | . . 87 . Legs 1471 | 71 859 469 72 Wheels . | . . . . Hover . | . . . . Flight . | . . . . Fastest Speed 50 | 50 120 120 50 Average Speed 135 | 114 145 126 117 Slowest Speed 200 | 120 190 200 200 Overloaded Moves . | . . . . Propulsion Burnouts . | . . . . Robots Hopped . | . . . . Potential Cave-ins . | . . . . Cave-ins Triggered . | . . . . Exploration Rate (%) 47 | 6 82 89 11 Regions Visited 3 Branch Regions 1 Pre-discovered Areas . | . . . . Known Exits Taken . | . . . . Unknown Exits Taken 3 | 1 1 1 . Scrap Searched 2 | . . 2 . Spaces Dug . | . . . . Terrain Destroyed 9 | . 9 . . Melee . | . . . . Projectile . | . . . . AOE 9 | . 9 . . Terrain Rammed . | . . . . Walls Destroyed . | . . . . Machines Disabled . | . . . . Actions | -11 -10 -10 -9 --------- Run | Yrd Mat Min Mat Total 1836 | 99 1008 596 133 Wait 100 | 11 83 3 3 Move 1576 | 76 858 556 86 Hop . | . . . . Pick Up 14 | 4 5 3 2 Fast Attach 32 | 6 11 9 6 Attach 10 | 1 1 2 6 Detach 3 | 1 2 . . Swap 5 | . 4 1 . Drop 25 | . 13 10 2 Fire 70 | . 31 12 27 Melee 1 | . . . 1 Ram . | . . . . Kick . | . . . . Crush . | . . . . Escape Stasis . | . . . . Rewire . | . . . . Trap . | . . . . Miscellaneous . | . . . . Route ------- -11/Scrapyard -10/Materials (discovered 4 exits: *Mat x3 / [*Min]) -10/Mines (discovered 3 exits: *Mat x2 / [*Sub]) -9/Materials History --------- Turn | Location | Event 10 | -11/Scrapyard | Discovered new exit (range 15) 114 | -11/Scrapyard | Entered Materials 168 | -10/Materials | Discovered new exit (range 16) 301 | -10/Materials | Build established: Mutant 455 | -10/Materials | Discovered new exit (range 9) 722 | -10/Materials | Discovered new exit (range 16) 960 | -10/Materials | Discovered new exit (range 7) 1571 | -10/Materials | Entered Mines 1586 | -10/Mines | Met a Derelict bent on vengeance 1789 | -10/Mines | Met a Derelict testing a Signal Generator 1797 | -10/Mines | Found Signal Generator 1846 | -10/Mines | Found a hidden stash of uninstalled traps 1876 | -10/Mines | Learned Materials security intel 1949 | -10/Mines | Discovered new exit (range 10) 2054 | -10/Mines | Discovered new exit (range 16) 2183 | -10/Mines | Assembled infested the area 2188 | -10/Mines | Assisted by a Guerilla fighting off Assembled 2263 | -10/Mines | Discovered new exit (range 12) 2337 | -10/Mines | Entered Materials 2337 | -9/Materials | Accompanied by 2 allies 2337 | -9/Materials | Evolved 2 slots: Utility x2 2342 | -9/Materials | Led the pair of lost Derelicts to an unsafe place 2478 | -9/Materials | Core integrity fell below 50% 2495 | -9/Materials | Core integrity fell below 20% 2527 | -9/Materials | Destroyed by G-34 Mercenary with Small Laser Last Messages --------------- 02489_ Hcp. Battery destroyed. 02491_ Jacked L-31 Rogue... >>parse_system Reading system data... 02492_ Datajack destroyed. 02494_ Hvy. EM Pulse Gun severed. 02497_ Acquired Hvy. EM Pulse Gun. 02498_ Hvy. EM Pulse Gun destroyed. 02504_ Acquired Beam Rifle. [Achievement: Hydra] 02507_ Acquired Ion Engine. 02508_ L-31 Rogue destroyed. 02514_ G-34 Mercenary suffers critical hit (Burn). 02516_ K-01 Serf collects debris. 02518_ Heat Sink melted. 02518_ G-34 Mercenary destroyed. 02520_ K-01 Serf collects debris. 02520_ Acquired 35 matter. 02523_ K-01 Serf collects debris. 02526_ K-01 Serf destroyed. Map ----- +----------------------------------------------------+ | | | | | | | | | | | | | | | | | | | | | | | | | | | | | | | #########????????????????#####???????????????????? | | #????????????????# !!#???????????????????? | | #????????#####???# !#???????????????????? | | ##########"T"##### !!#???????????????????? | | """"" + """"" !!#???????????????????? | | """"" ## ""T"" ]]#???????????????????? | | """"" ## """ ]]#???????????????????? | | ## """ #####???????????????????? | | ##+####### """*%#???#####???????????????? | | g*##[ #???????????????? | | a =m@/%% #???????????????? | | #######+####""" + #?????????? | | +###########+###???# #??R #%[ ??????????? | | ?????????????????# " #???" #???????????????? | | ????????????????# """ #????? #???????????????? | | ???????????????# """ ####???#????????????????? | | ???????????????# """=## #######??????????????? | | ??????????????# ""=!# [] = #??????????????? | | ?????????????# """%# % %!=[#??????????????? | | #????????????# ""[/ =%!|%!#??????????????? | | #######????????????# """ # *=!!==#??????????????? | | ???????????????????# " # % + ??????????? | | ???????????????????# # " " # """????????? | | ???????????????????# # """" #? ""?????????? | | ???????????????????####### """" #?? ""?????????? | | ?????????????????????????# #???? ?????????? | | ?????????????????????????##########??????????????? | | ?????????????????????????????????????????????????? | | ?????????????????????????????????????????????????? | | ?????????????????????????????????????????????????? | | ?????????????????????????????????????????????????? | | ?????????????????????????????????????????????????? | | ?????????????????????????????????????????????????? | | ?????????????????????????????????????????????????? | | ?????????????????????????????????????????????????? | +----------------------------------------------------+ Best States ------------- Heat Dissipation 42 Energy Generation 10 Energy Capacity 500 Matter Stores 300 Matter Capacity 300 Sight Range 16 Robot Scan Range 15 Terrain Scan Density 10 ECM Strength 1 Armor Coverage 150 Core Shielding 20 Power Shielding 33 Evasion (%) 55 Targeting Accuracy 5 Recoil Reduction 2 Item Schematics ----------------- None Robot Schematics ------------------ None Fabricated ------------ Nothing Repaired ---------- Nothing Studied --------- None Alien Tech Used ----------------- None Achievements -------------- Hydra Challenges ------------ None Game ------ Seed StormOmegaExtrapolator Manual? 0 Play Time 00:39:58 Cumulative 4.2 hours Start 2025.12.31 @ 21:46:59 End 2025.12.31 @ 22:52:41 Sessions 3 Manual Loads 0 Difficulty Rogue Special Mode None Game No. 11 Rogue 11 Adventurer 0 Explorer 0 Win Type - Total 0 Types 0/0/0/0/0/0/0/0/0/0 Lore% 1 Gallery% 6 Achievement% 9 Wizard Run 0 Options --------- Layout 0 ASCII 0 Keyboard 0 Movement Arrows Keybinds 0 Fullscreen 1 Font 12/Smallcaps Map View 76x56 Zoom Use 17% Tactical HUD 1 Map Filters NONE Filters NONE Steam SD RUN: bfc7439f-770a-4c1d-9a09-7c828593a776